Cogmind - Beta 10.1 @@@ ROGUE MODE // 2020.10.23 @ 02:52:28 Player: Boris Result: Escaped! Performance ------------- Evolutions (9) 4500 Regions Visited (26) 5200 Robots Destroyed (323) 1615 Value Destroyed (11693) 11693 Prototype IDs (79) 1580 Alien Tech Used (2) 400 Bonus (5859) 5859 TOTAL SCORE: 30847 Bonus ------- High Alert Combat Kills 1084 Follower Combat Kills 1713 Entered Garrisons 200 Used RIF Installer 500 Aligned with FarCom 300 Met Data Miner 300 Destroyed Z-Imprinter 1000 Found Hidden Lab 3000 Win 3000 Friendly Fire -5238 Cogmind --------- Core Integrity 85/1600 Matter 275/300 Energy 36/100 System Corruption 4% Temperature Cool (0) Movement Core (25) Location To Epsilon Eridani Parts ------- > --- POWER (2) -------- (None) > --- PROPULSION (6) --- (None) > --- UTILITY (14) ----- Inertial Stasis Machine Zionite Metafield Generator Experimental System Shield Quantum Router > --- WEAPON (4) ------- (None) > --- INVENTORY (4) ---- Heavy Regenerative Plating Transdimensional Reconstructor Compact HERF Cannon Peak State ------------ > --- POWER ------------ Light Quantum Reactor Light Quantum Reactor > --- PROPULSION ------- Impulse Thruster Array Impulse Thruster Array Impulse Thruster Array > --- UTILITY ---------- Experimental Heat Sink Large Storage Unit Large Storage Unit Inertial Stasis Machine Inertial Stasis Machine Advanced Cloaking Device Heavy Regenerative Plating Makeshift Hacking Suite Improved Hacking Suite Advanced System Shield Experimental System Shield Quantum Router Relay Coupler [Programmer] > --- WEAPON ----------- Warp Cannon KE Penetrator KE Penetrator Plasma Lance > --- INVENTORY -------- Quantum Reactor Light Quantum Reactor Zionite Biocell Advanced Matter Compressor Zionite Metafield Generator Stasis Canceller Transdimensional Reconstructor Core Reset Matrix Compact HERF Cannon Compact HERF Cannon Enhanced Nova Cannon Gamma Bomb Array Gamma Bomb Array Tactical Quantum Warhead Guided Remote Datajack [Rating: 199] Favorites ----------- Power Improved Deuterium Engine Engine Improved Deuterium Engine Power Core Micro Fission Core Reactor Light Quantum Reactor Propulsion Armored Treads Treads Armored Treads Leg Carbon-fiber Leg Wheel Wheel Hover Unit Improved Airjet Flight Unit Flying Fortress v7 Utility Large Storage Unit Device Improved Heat Sink Storage Large Storage Unit Processor Advanced Signal Interpreter Hackware Makeshift Hacking Suite Protection Layered Medium Armor Plating Weapon Makeshift Shrapnel Gun Energy Gun Tesla Rifle Energy Cannon Plasma Cannon Ballistic Gun Makeshift Shrapnel Gun Ballistic Cannon Enhanced Gauss Cannon Launcher Rocket Launcher Special Weapon Improved Remote Datajack Impact Weapon Great Maul Slashing Weapon Phasing Sabre Piercing Weapon Plasma Lance Special Melee Weapon Advanced Datajack Build | -11 -10 -10 -10 -9 -8 -8 -7 -7 -7 -7 -6 -6 -6 -6 -6 -6 -5 -5 -5 -4 -4 -4 -3 -2 -1 -1 ------- Run | Scr Mat Min Exi Min Mat Gar Fac Low Low Dat Pro Fac Low Low Zio Dee Pro Fac Ext Fac Arm Lab Res Res Acc Com Slots Evolved 17 | . . . . . 4 . 2 . . . . 2 . . . . . 2 . 2 . . 2 2 1 . Power 1 | . . . . . . . . . . . . . . . . . . . . . . . 1 . . . Propulsion 4 | . . . . . . . 1 . . . . 1 . . . . . 1 . 1 . . . . . . Utility 11 | . . . . . 3 . 1 . . . . 1 . . . . . 1 . 1 . . 1 2 1 . Weapon 1 | . . . . . 1 . . . . . . . . . . . . . . . . . . . . . Parts Attached 492 | 6 12 11 2 2 56 7 18 9 5 1 7 58 19 9 34 25 6 15 10 29 48 10 21 42 20 10 Power 33 | 1 1 . . 1 3 . 1 . . . . 3 . . 4 4 . . . 2 3 . 2 4 3 1 Engine 15 | 1 1 . . 1 1 . 1 . . . . 3 . . 4 2 . . . 1 . . . . . . Core 4 | . . . . . 2 . . . . . . . . . . . . . . 1 . . . 1 . . Reactor 14 | . . . . . . . . . . . . . . . . 2 . . . . 3 . 2 3 3 1 Propulsion 63 | 2 1 3 . . 16 . 2 . . . 1 11 . 1 9 . . 1 2 2 3 . 1 5 1 2 Treads 30 | 2 1 2 . . 7 . 1 . . . 1 9 . . 5 . . . 1 . . . . 1 . . Leg 11 | . . . . . 6 . . . . . . 1 . 1 3 . . . . . . . . . . . Wheel 1 | . . 1 . . . . . . . . . . . . . . . . . . . . . . . . Hover 4 | . . . . . 3 . . . . . . 1 . . . . . . . . . . . . . . Flight 17 | . . . . . . . 1 . . . . . . . 1 . . 1 1 2 3 . 1 4 1 2 Utility 177 | 1 5 . 2 . 16 . 7 4 3 1 5 17 12 4 7 13 6 9 1 14 16 5 8 11 9 1 Device 85 | . . . . . 4 . 3 3 3 1 5 6 9 2 4 4 3 3 . 9 9 1 4 7 5 . Storage 17 | 1 3 . 2 . 2 . . . . . . 1 . . . 1 . 2 . 2 1 . 1 . 1 . Processor 2 | . . . . . . . 1 . . . . . . . . . . . . . 1 . . . . . Hackware 22 | . . . . . 3 . . . . . . 2 . . 1 1 . 1 1 3 2 1 2 3 2 . Protection 51 | . 2 . . . 7 . 3 1 . . . 8 3 2 2 7 3 3 . . 3 3 1 1 1 1 Artifact . | . . . . . . . . . . . . . . . . . . . . . . . . . . . Weapon 219 | 2 5 8 . 1 21 7 8 5 2 . 1 27 7 4 14 8 . 5 7 11 26 5 10 22 7 6 Energy Gun 62 | 2 1 4 . . 7 1 4 1 1 . . 8 2 1 2 6 . 2 2 4 3 3 5 2 1 . Energy Cannon 38 | . . . . . 2 3 1 . . . . 2 2 . 1 2 . . 3 2 6 1 1 7 4 1 Ballistic Gun 38 | . 4 2 . 1 5 . 2 1 . . . 10 . 1 6 . . . . . 2 . . 4 . . Ballistic Cannon 4 | . . . . . . . . . . . . 1 . 1 1 . . . . . 1 . . . . . Launcher 41 | . . 2 . . 5 3 1 1 1 . 1 1 1 1 . . . 2 1 2 10 . 1 5 . 3 Special Weapon 15 | . . . . . 1 . . . . . . 1 1 . . . . 1 . 2 2 1 2 3 1 . Impact Weapon 1 | . . . . . . . . . . . . . . . 1 . . . . . . . . . . . Slashing Weapon 13 | . . . . . 1 . . 2 . . . 4 1 . 3 . . . 1 1 . . . . . . Piercing Weapon 5 | . . . . . . . . . . . . . . . . . . . . . 2 . 1 1 1 . Special Melee Weapon 2 | . . . . . . . . . . . . . . . . . . . . . . . . . . 2 Unidentified Prototypes 39 | . . . . . 6 . 2 1 . . . 2 . . 2 9 . . . . 10 6 1 . . . Parts Lost 88 | . 4 4 . . 19 . 1 . 1 . . 7 7 2 13 . . 1 1 1 2 . 2 4 3 16 Power 10 | . . . . . 2 . 1 . . . . 1 . . 2 . . . . . . . . 2 . 2 Propulsion 17 | . . 2 . . 4 . . . 1 . . 1 2 . 3 . . . . . . . . 1 . 3 Utility 24 | . 1 . . . 3 . . . . . . 2 2 . 3 . . 1 . . 1 . 1 . 2 8 Weapon 37 | . 3 2 . . 10 . . . . . . 3 3 2 5 . . . 1 1 1 . 1 1 1 3 Highest Loss Streak 16 | . 2 3 . . 11 . 1 . 1 . . 2 6 2 10 . . 1 1 1 2 . 2 3 3 16 Average Slot Usage (%) 89 | . 98 98 100 100 92 100 92 99 92 92 96 99 93 90 91 61 75 70 71 78 77 79 80 76 79 81 Engine 6 | . 14 14 14 14 6 9 7 7 7 7 7 5 6 6 5 4 6 5 5 2 . . . . . . Treads 12 | . 28 26 14 14 10 18 14 14 14 14 17 22 19 12 12 . . . 1 . . . . . . . Leg 2 | . . . . . 4 . . . . . . 1 . 5 5 . . . . . . . . . . . Flight 2 | . . . . . . . 1 7 . . . . . . . 6 6 5 9 9 9 9 7 9 8 7 Device 8 | . . . . . 4 . 5 14 7 7 7 4 10 17 13 7 11 5 5 5 6 . 7 7 17 20 Storage 18 | . 17 28 28 28 26 27 23 21 21 21 21 17 18 18 18 18 18 15 16 15 15 14 12 9 4 3 Processor 1 | . . . . . . . . 7 7 7 7 6 3 . . . . . . . . . . . . . Hackware 7 | . . . . . 4 9 7 . . . . 4 6 6 5 7 12 16 16 24 21 24 25 27 24 26 Protection 4 | . 8 . . . 8 9 6 . 7 7 7 8 3 . 4 4 . 3 . . . 4 . 1 . 1 Energy Gun 5 | . 4 18 . . 9 2 4 5 6 7 2 5 8 5 5 3 12 9 4 6 2 14 6 . 1 1 Energy Cannon 2 | . . . . . 4 10 6 . . . . . 2 6 5 . . . . 1 3 . 1 2 3 3 Ballistic Gun 9 | . 23 9 28 28 8 9 11 14 21 21 21 14 9 6 7 1 . . . . 1 . . 3 5 1 Ballistic Cannon 1 | . . . . . . . . . . . . 2 . 2 5 . . . . . . . . . . . Slashing Weapon 1 | . . . . . . . . 3 . . . 1 2 2 . 6 6 5 4 4 1 . . . . . Naked Turns . | . . . . . . . . . . . . . . . . . . . . . . . . . . . Heaviest Build 111 | 13 40 42 40 40 75 77 80 77 77 77 77 93 87 87 91 77 72 77 81 92 106 89 111 111 110 89 Greatest Support 113 | 40 40 40 10 10 40 40 40 40 40 40 68 110 110 50 80 72 72 80 80 95 111 111 111 111 113 97 Greatest Overweight (x) 30 | . 1 3 3 3 6 1 1 1 1 1 1 5 1 5 30 1 . . 3 . 1 . . 2 1 1 Average Overweight (x) 1 | . . . 3 3 2 1 1 1 1 1 1 . . 1 9 . . . . . . . . . . . Largest Inventory Capacity 22 | 6 16 16 16 16 22 22 22 22 22 22 22 22 22 22 22 22 22 22 22 22 22 22 22 22 16 10 Average Capacity 20 | 4 11 16 16 16 21 22 22 22 22 22 22 21 22 22 22 22 22 21 22 22 22 22 21 18 12 9 Most Carried 22 | 2 9 14 16 16 22 22 22 22 22 22 22 22 22 22 22 22 22 22 22 22 22 22 22 22 16 10 Average Carried 19 | 1 7 10 14 15 19 21 21 21 21 22 22 21 20 21 21 21 22 21 20 21 21 21 20 18 11 9 Final Capacity 22 | 6 16 16 16 16 22 22 22 22 22 22 22 22 22 22 22 22 22 22 22 22 22 22 22 16 10 4 Final Carried 22 | 2 8 11 16 16 22 22 22 22 22 22 22 22 22 22 22 22 22 22 22 22 21 21 22 16 10 4 Class Distribution -------------------- 27% | Hauler-Skirmisher 22% | Hauler-Tank 11% | Mutant 10% | Hacker-Mutant 8% | Hauler-Mutant 5% | Wizard-Mutant 3% | Wizard-Sprinter 3% | Scavenger-Mutant Dominant Class ---------------- Mutant | -10/Materials Mutant | -10/Mines Mutant | -10/Exiles Mutant | -9/Mines Hauler-Skirmisher | -8/Materials Hauler-Mutant | -8/Garrison Hauler-Skirmisher | -7/Factory Hauler-Skirmisher | -7/Lower Caves Hauler-Skirmisher | -7/Lower Caves Hauler-Skirmisher | -7/Data Miner Hauler-Skirmisher | -6/Proximity Caves Hauler-Skirmisher | -6/Factory Hauler-Skirmisher | -6/Lower Caves Scavenger-Skirmisher | -6/Lower Caves Hauler-Tank | -6/Zion Bothacker-Mutant | -6/Deep Caves Hauler-Mutant | -5/Proximity Caves Hacker-Mutant | -5/Factory Hacker-Mutant | -5/Extension Hacker-Mutant | -4/Factory Hacker-Mutant | -4/Armory Wizard-Mutant | -4/Lab Wizard-Sprinter | -3/Research Wizard-Mutant | -2/Research Wizard-Mutant | -1/Access Wizard-Mutant | -1/Command Resources | -11 -10 -10 -10 -9 -8 -8 -7 -7 -7 -7 -6 -6 -6 -6 -6 -6 -5 -5 -5 -4 -4 -4 -3 -2 -1 -1 ----------- Run | Scr Mat Min Exi Min Mat Gar Fac Low Low Dat Pro Fac Low Low Zio Dee Pro Fac Ext Fac Arm Lab Res Res Acc Com Matter Collected 10729 | 246 225 183 . 40 864 107 573 91 246 . 103 1612 451 183 1216 270 22 123 406 607 980 . 644 1012 335 190 Remotely . | . . . . . . . . . . . . . . . . . . . . . . . . . . . Salvage Created 11784 | . 650 552 . . 1869 192 610 . 118 . 178 1566 488 209 758 72 250 397 426 840 592 . 498 630 268 621 Parts 621 | . 55 23 . . 104 22 18 . 2 . 6 79 13 10 60 . 8 12 27 35 31 . 39 31 18 28 Haulers Intercepted 6 | . 1 . . . 3 . . . . . . . . . . . . . 1 . . . 1 . . . Recyclers Shooed 12 | . 1 . . . 3 . 1 . . . . 5 . . . . . 1 1 . . . . . . . Parts Field Recycled . | . . . . . . . . . . . . . . . . . . . . . . . . . . . Retrieved Matter . | . . . . . . . . . . . . . . . . . . . . . . . . . . . Parts Self-Destructed 48 | . . . . . . . . . 7 . 11 . 1 15 5 . 9 . . . . . . . . . Prevented . | . . . . . . . . . . . . . . . . . . . . . . . . . . . Kills | -11 -10 -10 -10 -9 -8 -8 -7 -7 -7 -7 -6 -6 -6 -6 -6 -6 -5 -5 -5 -4 -4 -4 -3 -2 -1 -1 ------- Run | Scr Mat Min Exi Min Mat Gar Fac Low Low Dat Pro Fac Low Low Zio Dee Pro Fac Ext Fac Arm Lab Res Res Acc Com Combat Hostiles Destroyed 232 | . 15 14 . . 39 18 9 . 4 . 5 28 14 4 4 . 4 3 4 16 18 . 5 16 3 9 Melee 23 | . . . . . 2 . . . . . . 1 . . . . . . . 7 3 . 5 5 . . Guns 88 | . 15 9 . . 16 1 3 . 4 . 2 21 5 2 3 . 4 3 . . . . . . . . Cannons 33 | . . . . . 4 2 3 . . . . 5 2 2 1 . . . . 1 2 . . 3 3 5 AOE 80 | . . 5 . . 17 15 3 . . . 3 . 7 . . . . . 4 6 9 . . 7 . 4 Classes Destroyed 21 | . 7 3 . . 5 . 1 . . . . 1 . . 3 . . . . . 1 . . . . . Worker 13 | . 3 . . . 6 . 1 . . . . . . . . . . . 1 2 . . . . . . Builder 7 | . 1 . . . 1 . . . . . . 1 . . . . . . 3 . . . . 1 . . Hauler 6 | . 1 . . . 3 . . . . . . . . . . . . . 1 . . . 1 . . . Recycler 9 | . . 2 . . 2 . 3 . . . . . . . . . . 1 . 1 . . . . . . Mechanic 1 | . . . . . 1 . . . . . . . . . . . . . . . . . . . . . Operator 9 | . 1 . . . 3 . . . . . . 1 . . . . . . . . . . 2 . 1 1 Watcher 9 | . 2 . . . 2 . . . . . . . . . . . . . 1 . . . 2 1 . 1 Swarmer 74 | . 4 6 . . 4 13 . . . . 1 2 1 . . . 4 . . 9 9 . 4 11 . 6 Saboteur 2 | . . . . . . . . . . . . . . . . . . . . . 2 . . . . . Grunt 74 | . 11 6 . . 22 2 4 . 3 . 3 9 5 1 . . . . 3 1 . . . 1 1 2 Brawler 8 | . . . . . 1 1 . . 1 . . 3 2 . . . . . . . . . . . . . Duelist 5 | . . . . . 1 . . . . . . . 1 1 . . . . . . 2 . . . . . Sentry 32 | . . . . . 9 . 2 . . . . 6 1 . . . . 3 1 3 2 . 1 2 1 1 Demolisher 1 | . . 1 . . . . . . . . . . . . . . . . . . . . . . . . Hunter 12 | . . . . . 2 2 1 . . . . 1 . 2 . . . . . . 2 . . 2 . . Programmer 14 | . . . . . . . 2 . . . 1 6 . . . . . . . 3 1 . . . 1 . Behemoth 1 | . . . . . . . . . . . . 1 . . . . . . . . . . . . . . Zionite 32 | . . . . . . . . . . . . . . . 32 . . . . . . . . . . . Decomposer 1 | . . . . . . . . . 1 . . . . . . . . . . . . . . . . . Tinkerer 3 | . . . . . . . . . . . . . . . 3 . . . . . . . . . . . Assembled 1 | . . 1 . . . . . . . . . . . . . . . . . . . . . . . . Thug 1 | . . . . . . . . . . . . . 1 . . . . . . . . . . . . . Savage 3 | . . . . . . . . . . . . . 3 . . . . . . . . . . . . . Butcher 1 | . . . . . . . . . . . . . . . 1 . . . . . . . . . . . Mutant 3 | . . . . . . . . . . . . . . . 3 . . . . . . . . . . . Best Kill Streak 10 | . 3 5 . . 9 9 6 . 3 . 4 6 10 2 5 . 3 1 2 5 9 . 4 5 1 8 Combat Bots Only 10 | . 3 3 . . 6 9 4 . 3 . 4 6 10 2 1 . 3 1 2 3 9 . 4 5 1 7 Max Kills in Single Turn 5 | . 2 2 . . 4 2 4 . 2 . 1 2 2 1 2 . 1 1 1 5 3 . 1 3 1 5 Gunslinging 1 | . 1 . . . . . . . 1 . . . . . . . . . . . . . . . . . Exploded 4 | . . 2 . . 3 2 3 . . . 1 . 2 . . . . . 1 2 3 . . 3 . 4 Melee 1 | . . . . . 1 . . . . . . 1 . . . . . . . 1 1 . 1 1 . . Uniques/NPCs Destroyed 2 | . . . . . . . . . . . . . . . . 1 . . 1 . . . . . . . Z-Imprinter (-6/Deep Caves) A7 (-5/Extension) Combat | -11 -10 -10 -10 -9 -8 -8 -7 -7 -7 -7 -6 -6 -6 -6 -6 -6 -5 -5 -5 -4 -4 -4 -3 -2 -1 -1 -------- Run | Scr Mat Min Exi Min Mat Gar Fac Low Low Dat Pro Fac Low Low Zio Dee Pro Fac Ext Fac Arm Lab Res Res Acc Com Damage Taken 21152 | . 738 427 . . 2562 138 740 . 105 . 298 3348 1196 502 1768 28 157 262 300 877 863 . 573 2952 391 2927 Core 3766 | . 33 98 . . 430 6 54 . . . 33 245 73 35 371 . 48 27 27 108 95 . 85 483 89 1426 Absorbed by Shields 111 | . . . . . . . . . . . . . . . . . . . . . . . . . . 111 Reduced by Siege Mode 45 | . . . . . . . . . . . . . . . . . . . . . . . . 45 . . Core Remaining (%) 60 | 100 . . . 47 . 20 . . . . 87 . . . . . 9 . 94 . . 82 93 66 . 5 Volleys Fired 850 | . 62 37 . . 117 32 21 . 13 . 12 112 25 11 77 6 30 50 27 32 26 . 46 60 32 22 Largest 4 | . 2 2 . . 3 3 3 . 4 . 4 4 4 3 4 3 2 2 1 1 2 . 1 3 2 1 Hottest 308 | . 80 80 . . 188 150 178 . 163 . 163 216 216 183 250 180 120 120 81 88 160 . 120 308 214 100 Shots Fired 1532 | . 121 66 . . 212 42 46 . 34 . 31 306 66 24 194 12 52 68 27 32 27 . 46 71 33 22 Gun 1107 | . 121 62 . . 156 9 28 . 29 . 26 263 50 13 138 10 52 68 7 8 . . 38 28 1 . Cannon 279 | . . . . . 28 16 16 . . . . 39 6 9 56 2 . . 4 14 10 . 1 29 29 20 Launcher 104 | . . 4 . . 18 17 2 . 5 . 5 . 7 2 . . . . 16 7 13 . . 6 . 2 Special 42 | . . . . . 10 . . . . . . 4 3 . . . . . . 3 4 . 7 8 3 . Kinetic 709 | . 98 24 . . 102 7 22 . 27 . 24 231 27 8 129 . . . . . . . . 10 . . Thermal 509 | . 20 . . . 92 18 22 . 2 . 2 48 29 14 16 10 52 68 7 7 3 . 2 47 30 20 Explosive 91 | . . 4 . . 18 17 2 . 5 . 5 . 7 2 . . . . 16 2 5 . . 6 . 2 Electromagnetic 190 | . 3 38 . . . . . . . . . 23 . . 49 2 . . 4 19 15 . 37 . . . Phasic 1 | . . . . . . . . . . . . . . . . . . . . 1 . . . . . . Robot Hit Streak 28 | . 17 15 . . 28 8 15 . 16 . 4 25 10 6 11 7 9 9 5 7 5 . 10 10 6 . Robot Miss Streak 6 | . 6 2 . . 3 5 4 . 3 . 6 4 6 2 5 . 3 1 2 3 4 . 2 2 1 1 Penetration Max 1 | . . . . . 1 . 1 . . . . . . . 1 . . . . . . . 1 . . . Secondary Targets 8 | . 1 1 . . . . . . 1 . . 1 1 . 1 . 2 . . . . . . . . . Max Gunslinging Chain 1 | . 1 1 . . . . . . 1 . . 1 1 . 1 . 1 . . . . . . . . . Shots Hit Robots 1029 | . 86 48 . . 154 10 28 . 20 . 11 237 52 16 132 5 10 28 23 36 22 . 51 46 9 5 Core Hits 665 | . 39 30 . . 97 27 24 . 13 . 13 104 68 12 55 2 6 11 35 25 38 . 19 25 6 16 Critical Hits 28 | . 1 . . . . . . . 1 . . 5 2 . 1 2 . . . 1 1 . . 3 7 4 Critical Kills 9 | . 1 . . . . . . . 1 . . 1 . . . 1 . . . . 1 . . 1 1 2 Critical Parts Destroyed 17 | . . . . . . . . . . . . 4 2 . 1 . . . . 1 . . . 2 6 1 Melee Attacks 242 | . . . . . 4 . . 2 . . . 11 . . 31 3 . 18 19 53 18 3 30 35 9 6 Impact 9 | . . . . . . . . . . . . . . . 9 . . . . . . . . . . . Slashing 134 | . . . . . 4 . . 2 . . . 11 . . 22 3 . 18 19 53 2 . . . . . Piercing 96 | . . . . . . . . . . . . . . . . . . . . . 16 3 30 35 9 3 Sneak Attacks 26 | . . . . . . . . . . . . . . . . . . 2 17 2 1 . 3 . 1 . Combat Hostiles 4 | . . . . . . . . . . . . . . . . . . . 1 2 1 . . . . . Follow-up Attacks . | . . . . . . . . . . . . . . . . . . . . . . . . . . . Damage Inflicted 38394 | . 959 1059 . . 4898 1583 1022 . 738 . 537 4688 2409 579 2624 353 312 1110 3962 2446 2095 . 1360 2910 892 1858 Guns 12212 | . 862 578 . . 1754 22 403 . 330 . 189 3737 1046 179 1428 . 312 743 103 . . . 57 469 . . Cannons 5197 | . . . . . 500 104 243 . . . . 646 103 177 783 4 . . 73 321 304 . . 618 592 729 Explosions 13586 | . . 418 . . 2348 1457 353 . 399 . 348 259 1260 223 196 . . . 1979 887 1526 . . 1270 . 663 Melee 6829 | . . . . . 85 . . . . . . 42 . . 193 349 . 367 1668 1238 265 . 1303 553 300 466 Ramming 402 | . 97 63 . . 43 . 23 . 9 . . 4 . . 24 . . . 139 . . . . . . . Kinetic 7378 | . 619 202 . . 874 . 241 . 276 . 123 3039 602 96 1234 . . . . . . . . 72 . . Thermal 9980 | . 231 150 . . 2041 126 405 . 54 . 66 1239 547 260 454 . 312 743 103 722 156 . 35 1015 592 729 Explosive 10971 | . . 268 . . 1855 1457 353 . 399 . 348 . 1260 223 . . . . 1979 . 896 . . 1270 . 663 Electromagnetic 2834 | . 12 376 . . . . . . . . . 364 . . 719 4 . . 73 486 778 . 22 . . . Impact 193 | . . . . . . . . . . . . . . . 193 . . . . . . . . . . . Slashing 3749 | . . . . . 85 . . . . . . 42 . . . 349 . 367 1668 1238 . . . . . . Piercing 2887 | . . . . . . . . . . . . . . . . . . . . . 265 . 1303 553 300 466 Highest Corruption 9 | . . 1 1 1 1 1 1 1 . . . 6 9 9 9 2 2 . . 1 2 2 2 3 2 4 Average Corruption 2 | . . 1 1 1 1 1 1 1 . . . 3 6 9 2 2 2 . . 1 1 2 2 1 1 2 Corruption Purged 11 | . . . . . . . . 1 . . . 9 1 . . . . . . . . . . . . . Effects 172 | . . . 3 3 3 3 1 . . . . 47 33 19 8 13 7 . . 6 9 6 5 . 4 2 Message Errors 47 | . . . 2 2 2 . . . . . . 13 2 3 3 5 . . . 4 3 2 4 . 2 . Matter Fused 32 | . . . . . . . . . . . . 14 12 5 1 . . . . . . . . . . . Heat Flow Errors 21 | . . . . . . . . . . . . 5 4 2 1 4 1 . . . 1 3 . . . . Energy Discharges 21 | . . . . 1 1 1 1 . . . . 1 2 4 1 1 . . . 2 1 . 1 . 2 2 Parts Rejected 3 | . . . . . . . . . . . . 2 1 . . . . . . . . . . . . . Data Loss (minor) 22 | . . . 1 . . 2 . . . . . 4 3 2 1 3 2 . . . 3 1 . . . . Data Loss (major) 4 | . . . . . . . . . . . . 2 2 . . . . . . . . . . . . . Targeting Errors 17 | . . . . . . . . . . . . 5 7 1 1 . 2 . . . 1 . . . . . Weapon Failures 5 | . . . . . . . . . . . . 1 . 2 . . 2 . . . . . . . . . Overload Shots . | . . . . . . . . . . . . . . . . . . . . . . . . . . . Overflow Damage 1846 | . . 26 . . 121 74 5 . . . . 43 15 2 13 93 . 194 414 252 56 . 87 232 179 40 Projectiles 100 | . . . . . 10 20 . . . . . . . . 1 . . . . . . . . 29 . 40 Explosions 697 | . . 26 . . 111 54 5 . . . . 43 15 2 . . . . 127 82 50 . . 182 . . Melee 1049 | . . . . . . . . . . . . . . . 12 93 . 194 287 170 6 . 87 21 179 . Knockbacks 12 | . 1 1 . . . . . . . . . 3 . . 7 . . . . . . . . . . . Impact 5 | . 1 1 . . . . . . . . . . . . 3 . . . . . . . . . . . Kinetic 7 | . . . . . . . . . . . . 3 . . 4 . . . . . . . . . . . Secondary . | . . . . . . . . . . . . . . . . . . . . . . . . . . . Self-Inflicted Damage 408 | . . 44 . . 148 12 . . . . . . 65 . . . . . . 18 50 . . 71 . . Shots 19 | . . 1 . . 4 1 . . . . . . 4 . . . . . . 1 7 . . 1 . . Rammed 80 | . 19 8 . . 7 . 1 . . . . 2 . . 1 . . . 42 . . . . . . . Targets Rammed 90 | . 23 10 . . 8 . 3 . 1 . . 2 . . 1 . . . 42 . . . . . . . Kicked . | . . . . . . . . . . . . . . . . . . . . . . . . . . . Crushed 10 | . 4 2 . . 1 . 2 . 1 . . . . . . . . . . . . . . . . . Highest Temperature 465 | . 238 90 . . 261 180 226 . 127 . 109 330 465 155 265 235 183 33 . 60 223 257 84 232 72 34 Average Temperature 79 | . 67 38 . . 71 59 85 . 57 . 60 114 158 33 130 51 41 11 . 21 64 119 22 74 27 21 Received Heat Transfer 3215 | . 246 153 . . 945 9 156 . 54 . 27 750 261 27 227 9 . 54 27 96 27 . 27 93 . 27 Effects 7 | . . . . . 1 . . . . . . 5 . . . . . . . . . 1 . . . . Energy Bleed 3 | . . . . . 1 . . . . . . 1 . . . . . . . . . 1 . . . . Interference 3 | . . . . . . . . . . . . 3 . . . . . . . . . . . . . . Matter Decay 1 | . . . . . . . . . . . . 1 . . . . . . . . . . . . . . Siege Activations 1 | . . . . . . . . . . . . . . . . . . . . . . . . 1 . . Total Turns 24 | . . . . . . . . . . . . . . . . . . . . . . . . 24 . . Longest Duration 24 | . . . . . . . . . . . . . . . . . . . . . . . . 24 . . Robots Corrupted 7 | . . . . . . . . . . . . 1 . . . . . . . 2 4 . . . . . Combat Hostiles 7 | . . . . . . . . . . . . 1 . . . . . . . 2 4 . . . . . Parts Fried 14 | . . 3 . . . . . . . . . 3 . . 2 . . . . 3 2 . . . . 1 Impact Corruptions 2 | . . . . . . . . . . . . . . . 2 . . . . . . . . . . . Robots Melted 1 | . . . . . . . . . . . . . . . . . . . . . . . . 1 . . Combat Hostiles 1 | . . . . . . . . . . . . . . . . . . . . . . . . 1 . . Parts Melted 22 | . 4 . . . 3 . 4 . . . . 3 1 2 . . . 3 . . . . . 2 . . Heat Transferred 13555 | . 666 150 . . 3203 185 683 . 125 . 125 2053 903 498 700 . 407 962 111 550 125 . 37 999 481 592 Parts Sabotaged 7 | . . . . . . . . . . . . . . . . . . . . . 7 . . . . . Parts Stolen . | . . . . . . . . . . . . . . . . . . . . . . . . . . . Parts Stripped . | . . . . . . . . . . . . . . . . . . . . . . . . . . . Power Chain Reactions 8 | . . 2 . . . . . . . . . 1 . . 2 . . . . 1 2 . . . . . Missiles Intercepted . | . . . . . . . . . . . . . . . . . . . . . . . . . . . Alert | -11 -10 -10 -10 -9 -8 -8 -7 -7 -7 -7 -6 -6 -6 -6 -6 -6 -5 -5 -5 -4 -4 -4 -3 -2 -1 -1 ------- Run | Scr Mat Min Exi Min Mat Gar Fac Low Low Dat Pro Fac Low Low Zio Dee Pro Fac Ext Fac Arm Lab Res Res Acc Com Peak Influence 1144 | . 203 223 . . 764 1144 760 . . . . 1073 . . . . . 128 551 341 463 . 456 699 948 891 Initial 600 | . . 8 . . . 495 600 . . . . . . . . . . 12 62 90 112 . . 43 419 228 Average 238 | . 58 56 . . 326 789 615 . . . . 179 . . . . . 74 224 158 191 . 169 344 558 509 Maximum Alert Level 4 | . 1 1 . . 3 4 3 . . . . 3 . . . . . . 2 1 2 . 2 2 3 3 Low Security (%) 59 | 100 95 98 . 100 28 . . . . . . 72 . . . . . 100 43 73 61 . 73 37 . . Level 1 16 | . 4 1 . . 42 . . . . . . 8 . . . . . . 45 26 33 . 4 10 40 40 Level 2 17 | . . . . . 16 52 85 . . . . 15 . . . . . . 10 . 4 . 22 52 24 32 Level 3 6 | . . . . . 12 39 14 . . . . 3 . . . . . . . . . . . . 34 27 Level 4 . | . . . . . . 8 . . . . . . . . . . . . . . . . . . . . Level 5 . | . . . . . . . . . . . . . . . . . . . . . . . . . . . High Security . | . . . . . . . . . . . . . . . . . . . . . . . . . . . Max Security . | . . . . . . . . . . . . . . . . . . . . . . . . . . . Squads Dispatched 57 | . 4 . . . 5 . 4 . 1 . . 17 . . . . . 2 4 5 2 . 2 4 7 . Investigation 16 | . 1 . . . 1 . 1 . 1 . . 4 . . . . . 1 2 2 . . 1 1 1 . Extermination 15 | . . . . . . . 2 . . . . 6 . . . . . 1 . 3 1 . . 1 1 . Reinforcement 20 | . 3 . . . 3 . 1 . . . . 3 . . . . . . 2 . 1 . 1 2 4 . Assault 3 | . . . . . 1 . . . . . . 1 . . . . . . . . . . . . 1 . Garrison 3 | . . . . . . . . . . . . 3 . . . . . . . . . . . . . . Intercept . | . . . . . . . . . . . . . . . . . . . . . . . . . . . Construction Impeded 6 | . . . . . 1 . . . . . . 1 . . . . . . 2 . . . 1 1 . . Haulers Reinforced 1 | . . . . . . . . . . . . . . . . . . . . . . . . . 1 . Stealth | -11 -10 -10 -10 -9 -8 -8 -7 -7 -7 -7 -6 -6 -6 -6 -6 -6 -5 -5 -5 -4 -4 -4 -3 -2 -1 -1 --------- Run | Scr Mat Min Exi Min Mat Gar Fac Low Low Dat Pro Fac Low Low Zio Dee Pro Fac Ext Fac Arm Lab Res Res Acc Com Distress Signals 25 | . 3 . . . 6 . . . . . . 2 . . . . . . 1 . 2 . 3 3 2 3 Communications Jammed . | . . . . . . . . . . . . . . . . . . . . . . . . . . . Distress Signals . | . . . . . . . . . . . . . . . . . . . . . . . . . . . Times Spotted 530 | . 40 13 . . 76 11 12 . 6 . 10 46 15 6 62 10 11 5 15 35 30 . 18 47 23 39 Peak Tracking Total 21 | . 4 3 . . 9 5 5 . 3 . 8 6 11 3 7 6 5 2 3 6 6 . 8 13 6 21 Tactical Retreats 56 | . 1 1 . . . 1 . . . . 1 1 . . 17 . 4 1 1 7 1 . 2 10 6 2 Traps | -11 -10 -10 -10 -9 -8 -8 -7 -7 -7 -7 -6 -6 -6 -6 -6 -6 -5 -5 -5 -4 -4 -4 -3 -2 -1 -1 ------- Run | Scr Mat Min Exi Min Mat Gar Fac Low Low Dat Pro Fac Low Low Zio Dee Pro Fac Ext Fac Arm Lab Res Res Acc Com Traps Triggered 23 | . 1 . . . 2 3 1 . . . . 2 . . . . . . . . 1 . 6 1 3 3 Indirectly 1 | . . . . . . . . . . . . . . . . . . . . . 1 . . . . . Trap Hack Attempts . | . . . . . . . . . . . . . . . . . . . . . . . . . . . Triggered . | . . . . . . . . . . . . . . . . . . . . . . . . . . . Disarmed 7 | . . . . . . . . . . . . . . . . . . . 1 6 . . . . . . Reprogrammed . | . . . . . . . . . . . . . . . . . . . . . . . . . . . Reused . | . . . . . . . . . . . . . . . . . . . . . . . . . . . Traps Extracted . | . . . . . . . . . . . . . . . . . . . . . . . . . . . Installed . | . . . . . . . . . . . . . . . . . . . . . . . . . . . Triggered 2 | . . . . . . . . . . . . . . 1 . . . . . . 1 . . . . . Machines | -11 -10 -10 -10 -9 -8 -8 -7 -7 -7 -7 -6 -6 -6 -6 -6 -6 -5 -5 -5 -4 -4 -4 -3 -2 -1 -1 ---------- Run | Scr Mat Min Exi Min Mat Gar Fac Low Low Dat Pro Fac Low Low Zio Dee Pro Fac Ext Fac Arm Lab Res Res Acc Com Machines Disabled 51 | . . 1 . . 5 6 1 . . . . 8 . . 2 1 . 1 4 9 5 1 . 4 1 2 Max in Single Turn 4 | . . 1 . . 3 2 1 . . . . 3 . . . . . 1 2 4 1 1 . 1 1 1 Garrison Access 10 | . . . . . . . 1 . . . . 1 . . . . . 2 . 2 . . 2 1 1 . Garrison Relay 1 | . . . . . . 1 . . . . . . . . . . . . . . . . . . . . Energy Cycler 1 | . . . . . . . . . . . . . . . . . . . 1 . . . . . . . Machines Sabotaged . | . . . . . . . . . . . . . . . . . . . . . . . . . . . Garrisons Compromised . | . . . . . . . . . . . . . . . . . . . . . . . . . . . Overloaded Fab Kills . | . . . . . . . . . . . . . . . . . . . . . . . . . . . Fab Network Shutdowns 3 | . . . . . . . . . . . . 1 . . . . . . . . . . 1 . 1 . Hacking | -11 -10 -10 -10 -9 -8 -8 -7 -7 -7 -7 -6 -6 -6 -6 -6 -6 -5 -5 -5 -4 -4 -4 -3 -2 -1 -1 --------- Run | Scr Mat Min Exi Min Mat Gar Fac Low Low Dat Pro Fac Low Low Zio Dee Pro Fac Ext Fac Arm Lab Res Res Acc Com Machines Accessed 159 | . 7 1 4 1 12 . 7 1 1 4 . 14 1 1 1 . . 18 12 16 11 2 11 13 14 7 Terminals 93 | . 5 1 . . 7 . 3 . 1 . . 6 . . . . . 10 12 9 7 . 6 10 10 6 Fabricators 12 | . . . . . . . 1 . . . . 1 . . . . . 2 . 2 2 . 2 1 1 . Repair Stations 18 | . 1 . . . 1 . 1 . . . . 4 . . . . . 2 . 2 2 . 1 1 2 1 Recycling Units 5 | . 1 . . . 1 . 1 . . . . 1 . . . . . 1 . . . . . . . . Scanalyzers 5 | . . . . . 2 . . . . . . 1 . . . . . 1 . 1 . . . . . . Garrison Access 11 | . . . . . 1 . 1 . . . . 1 . . . . . 2 . 2 . . 2 1 1 . Total Hacks 669 | . 22 1 26 1 52 . 15 1 5 25 . 52 1 1 4 . . 37 27 63 38 19 74 75 81 49 Successful 398 | . 7 . 26 1 42 . 4 1 2 25 . 31 1 1 4 . . 25 14 45 25 19 36 29 39 21 Failed 267 | . 15 1 . . 10 . 11 . 2 . . 21 . . . . . 12 13 17 12 . 38 46 41 28 Catastrophic 49 | . 2 . . . 2 . 1 . . . . 3 . . . . . 3 2 . 3 . 6 12 9 6 Database Lockouts 4 | . . . . . . . . . 1 . . . . . . . . . . 1 1 . . . 1 . Manual 287 | . 15 3 1 . 13 . 2 . 4 . . 10 . . . . . 14 25 36 15 . 39 43 43 24 Terminals 401 | . 16 1 . . 16 . 5 . 5 . . 20 . . . . . 25 27 45 26 . 52 63 54 46 Fabricators 61 | . . . . . . . 3 . . . . 7 . . . . . 3 . 6 8 . 11 7 16 . Repair Stations 65 | . 4 . . . 4 . 4 . . . . 12 . . . . . 4 . 7 4 . 9 4 10 3 Recycling Units 10 | . 2 . . . 2 . 2 . . . . 3 . . . . . 1 . . . . . . . . Scanalyzers 42 | . . . . . 29 . . . . . . 9 . . . . . 2 . 2 . . . . . . Garrison Access 12 | . . . . . 1 . 1 . . . . 1 . . . . . 2 . 3 . . 2 1 1 . Terminal Hacks 219 | . 3 . 26 1 4 . . 1 2 25 . 3 1 1 4 . . 11 10 21 15 19 19 17 20 16 Record 67 | . . . 25 . . . . . 1 11 . . . . . . . . 2 . 1 19 2 2 2 2 Part Schematic 29 | . . . . . 1 . . . . 6 . . . . 4 . . 4 1 3 2 . 6 2 . . Robot Schematic 5 | . . . . . . . . . . 5 . . . . . . . . . . . . . . . . Robot Analysis 22 | . 2 . . . 2 . . . 1 . . . . . . . . 1 . 4 2 . . 1 7 2 Prototype ID Bank 6 | . . . . . . . . . . 3 . . . . . . . . . . 2 . 1 . . . Open Door 5 | . . . . 1 . . . 1 . . . . 1 1 . . . 1 . . . . . . . . Level Access Points 6 | . . . . . . . . . . . . . . . . . . . 1 . 1 . 1 1 1 1 Branch Access Points 5 | . . . . . . . . . . . . . . . . . . 1 1 1 . . 1 . 1 . Emergency Access Points 2 | . . . . . . . . . . . . . . . . . . . . . . . . . 1 1 Machine Index 5 | . . . . . . . . . . . . . . . . . . 1 . 1 . . 1 . 1 1 Terminal Index 2 | . . . . . . . . . . . . . . . . . . . . . . . 1 1 . . Fabricator Index 3 | . . . . . . . . . . . . . . . . . . . . 1 . . . 1 . 1 Repair Station Index 1 | . . . . . . . . . . . . . . . . . . . . . . . . 1 . . Scanalyzer Index 1 | . . . . . 1 . . . . . . . . . . . . . . . . . . . . . Garrison Index 2 | . . . . . . . . . . . . 1 . . . . . . . . . . . . . 1 Unreport Threat 18 | . . . . . . . . . . . . . . . . . . . 3 3 3 . 2 3 4 . Locate Traps 9 | . . . . . . . . . . . . 1 . . . . . . . 2 1 . . 2 1 2 Disarm Traps 3 | . . . . . . . . . . . . . . . . . . . 2 1 . . . . . . Patrol Status 1 | . . . . . . . . . . . . . . . . . . . . . . . . . . 1 Recall Investigation 1 | . . . . . . . . . . . . . . . . . . . . . 1 . . . . . Recall Extermination 3 | . . . . . . . . . . . . . . . . . . 1 . 2 . . . . . . Recall Assault 1 | . . . . . . . . . . . . . . . . . . . . . . . . . 1 . Hauler Manifests 4 | . 1 . . . . . . . . . . . . . . . . 1 . 1 . . 1 . . . Registered Components 3 | . . . . . . . . . . . . . . . . . . 1 . 1 . . . . . 1 Registered Prototypes 3 | . . . . . . . . . . . . . . . . . . . . . . . 1 . 1 1 Zone Layout 11 | . . . . . . . . . . . . 1 . . . . . . . 1 2 . 2 3 . 2 EX-Prototype ID Bank 1 | . . . 1 . . . . . . . . . . . . . . . . . . . . . . . Fabricator Hacks 26 | . . . . . . . . . . . . 4 . . . . . 2 . 5 4 . 5 1 5 . Load Schematic 11 | . . . . . . . . . . . . 1 . . . . . 1 . 2 2 . 2 1 2 . Build 15 | . . . . . . . . . . . . 3 . . . . . 1 . 3 2 . 3 . 3 . Repair Station Hacks 46 | . 2 . . . 4 . 2 . . . . 8 . . . . . 4 . 5 4 . 8 4 3 2 Scan Component 24 | . 1 . . . 2 . 1 . . . . 4 . . . . . 2 . 3 2 . 4 2 2 1 Repair 22 | . 1 . . . 2 . 1 . . . . 4 . . . . . 2 . 2 2 . 4 2 1 1 Recycling Unit Hacks 5 | . . . . . 1 . 1 . . . . 2 . . . . . 1 . . . . . . . . Retrieve Components 5 | . . . . . 1 . 1 . . . . 2 . . . . . 1 . . . . . . . . Scanalyzer 42 | . . . . . 29 . . . . . . 9 . . . . . 2 . 2 . . . . . . Insert Component 16 | . . . . . 12 . . . . . . 2 . . . . . 1 . 1 . . . . . . Analyze 26 | . . . . . 17 . . . . . . 7 . . . . . 1 . 1 . . . . . . Garrison Access Hacks 12 | . . . . . 1 . 1 . . . . 1 . . . . . 2 . 3 . . 2 1 1 . Unlock Access 2 | . . . . . 1 . . . . . . . . . . . . . . 1 . . . . . . Seal Access 10 | . . . . . . . 1 . . . . 1 . . . . . 2 . 2 . . 2 1 1 . Unauthorized Hacks 48 | . 2 . . . 3 . . . . . . 4 . . . . . 3 4 9 2 . 2 6 10 3 Terminals 38 | . 2 . . . 2 . . . . . . 3 . . . . . 2 4 7 . . 2 6 7 3 Track 1 | . . . . . . . . . . . . . . . . . . . . 1 . . . . . . Assimilate 8 | . . . . . 1 . . . . . . 2 . . . . . . . 1 . . 2 2 . . Botnet 22 | . 1 . . . 1 . . . . . . 1 . . . . . 2 3 3 . . . 3 6 2 Detonate 1 | . . . . . . . . . . . . . . . . . . . . 1 . . . . . . Disrupt 2 | . . . . . . . . . . . . . . . . . . . . . . . . 1 . 1 Operators 3 | . 1 . . . . . . . . . . . . . . . . . 1 1 . . . . . . Sabotage 1 | . . . . . . . . . . . . . . . . . . . . . . . . . 1 . Fabricators 7 | . . . . . . . . . . . . . . . . . . 1 . 1 2 . . . 3 . Report 1 | . . . . . . . . . . . . . . . . . . . . . . . . . 1 . Prioritize 4 | . . . . . . . . . . . . . . . . . . . . 1 2 . . . 1 . Siphon 1 | . . . . . . . . . . . . . . . . . . . . . . . . . 1 . Haulers 1 | . . . . . . . . . . . . . . . . . . 1 . . . . . . . . Repair Stations 1 | . . . . . . . . . . . . . . . . . . . . 1 . . . . . . Mechanics 1 | . . . . . . . . . . . . . . . . . . . . 1 . . . . . . Recycling Units 2 | . . . . . 1 . . . . . . 1 . . . . . . . . . . . . . . Monitor 1 | . . . . . . . . . . . . 1 . . . . . . . . . . . . . . Reject 1 | . . . . . 1 . . . . . . . . . . . . . . . . . . . . . Scanalyzers . | . . . . . . . . . . . . . . . . . . . . . . . . . . . Garrison Access . | . . . . . . . . . . . . . . . . . . . . . . . . . . . Data Cores Recovered 2 | . . . . . 1 . . . . . . 1 . . . . . . . . . . . . . . Used 2 | . . . . . 1 . . . . . . 1 . . . . . . . . . . . . . . Hacking Detections 115 | . 7 1 . . 12 . 6 . 1 . . 12 . . . . . 14 12 12 7 . 7 10 7 7 Full Trace Events 13 | . 1 . . . . . 1 . 1 . . 4 . . . . . 1 1 2 . . 1 1 . . Feedback Events 4 | . . . . . . . . . . . . 2 . . . . . . . 1 . . . 1 . . Corruption 4 | . . . . . . . . . . . . 2 . . . . . . . 1 . . . 1 . . Feedback Blocked . | . . . . . . . . . . . . . . . . . . . . . . . . . . . Robot Schematics Acquired 5 | . . . . . . . . . . 5 . . . . . . . . . . . . . . . . Robots Built . | . . . . . . . . . . . . . . . . . . . . . . . . . . . Matter . | . . . . . . . . . . . . . . . . . . . . . . . . . . . Time . | . . . . . . . . . . . . . . . . . . . . . . . . . . . Total Robot Build Rating . | . . . . . . . . . . . . . . . . . . . . . . . . . . . Part Schematics Acquired 39 | . . . . . 11 . . . . 6 . 2 . . 4 . . 4 1 4 2 . 4 1 . . Parts Built 14 | . . . . . . . . . . . . 3 . . . . . 1 . 3 2 . 2 . 3 . Matter 3754 | . . . . . . . . . . . . 954 . . . . . 285 . 658 541 . 512 . 804 . Time 945 | . . . . . . . . . . . . 252 . . . . . 152 . 145 204 . 84 . 108 . Total Part Build Rating 94 | . . . . . . . . . . . . 18 . . . . . 5 . 19 13 . 16 . 23 . Parts Repaired 21 | . 1 . . . 2 . 1 . . . . 4 . . . . . 2 . 2 1 . 4 2 1 1 Time 745 | . 26 . . . 70 . 19 . . . . 102 . . . . . 21 . 49 105 . 242 55 34 22 Parts Recycled . | . . . . . . . . . . . . . . . . . . . . . . . . . . . Recycled Matter . | . . . . . . . . . . . . . . . . . . . . . . . . . . . Retrieved Matter . | . . . . . . . . . . . . . . . . . . . . . . . . . . . Retrieved Components 21 | . . . . . 10 . 10 . . . . . . . . . . 1 . . . . . . . . Parts Scanalyzed 15 | . . . . . 11 . . . . . . 2 . . . . . 1 . 1 . . . . . . Part Schematics Acquired 13 | . . . . . 10 . . . . . . 2 . . . . . . . 1 . . . . . . Parts Damaged 1 | . . . . . . . . . . . . 1 . . . . . . . . . . . . . . Bothacking | -11 -10 -10 -10 -9 -8 -8 -7 -7 -7 -7 -6 -6 -6 -6 -6 -6 -5 -5 -5 -4 -4 -4 -3 -2 -1 -1 ------------ Run | Scr Mat Min Exi Min Mat Gar Fac Low Low Dat Pro Fac Low Low Zio Dee Pro Fac Ext Fac Arm Lab Res Res Acc Com Used RIF Installer 1 | . . . . . . 1 . . . . . . . . . . . . . . . . . . . . Robots Hacked 12 | . . . . . . . . . . . . 2 . . . . . . . 1 3 . 1 3 . 2 Non-combat 1 | . . . . . . . . . . . . 1 . . . . . . . . . . . . . . Combat 11 | . . . . . . . . . . . . 1 . . . . . . . 1 3 . 1 3 . 2 Robot Hacks Applied 12 | . . . . . . . . . . . . 2 . . . . . . . 1 3 . 1 3 . 2 find_chute 1 | . . . . . . . . . . . . 1 . . . . . . . . . . . . . . formatsys_high 11 | . . . . . . . . . . . . 1 . . . . . . . 1 3 . 1 3 . 2 Relay Couplers Released 3 | . . . . . . 3 . . . . . . . . . . . . . . . . . . . . Machine Destruction 3 | . . . . . . 3 . . . . . . . . . . . . . . . . . . . . Attached 4 | . . . . . . . . . . . . 1 . . 1 . . . . . 1 . . 1 . . Robots Rewired 10 | . . . . . . . 3 . . . . . 2 . . . . . 3 . . . 2 . . . Allies Hacked 1 | . . . . . . . . . . . . . . . . . . . . . . . . . . 1 Hacks Repelled . | . . . . . . . . . . . . . . . . . . . . . . . . . . . Allies | -11 -10 -10 -10 -9 -8 -8 -7 -7 -7 -7 -6 -6 -6 -6 -6 -6 -5 -5 -5 -4 -4 -4 -3 -2 -1 -1 -------- Run | Scr Mat Min Exi Min Mat Gar Fac Low Low Dat Pro Fac Low Low Zio Dee Pro Fac Ext Fac Arm Lab Res Res Acc Com Total Allies 48 | . . 2 . . . . 3 . . . 1 3 2 . . 1 . . 18 2 3 . 5 5 . 3 Largest Group 13 | . . 2 . . . . 3 3 3 . 1 2 2 2 1 1 . . 13 1 2 . 2 4 . 3 Highest-Rated Group 508 | . . 39 . . . . 62 62 62 . 94 94 59 59 29 118 . . 508 54 108 . 154 242 . 233 Highest-Rated Ally 156 | . . 31 . . . . 30 30 30 . 94 94 30 30 29 118 . . 156 54 54 . 90 90 . 90 Total Orders 61 | . . . . . . . . 4 . . . . . . 20 29 . . 1 . 1 . 3 2 . 1 STAY 17 | . . . . . . . . 2 . . . . . . 1 9 . . 1 . 1 . 1 2 . . ROAM 4 | . . . . . . . . . . . . . . . 1 . . . . . . . 2 . . 1 FOLLOW 6 | . . . . . . . . 2 . . . . . . 3 1 . . . . . . . . . . EXPLORE 3 | . . . . . . . . . . . . . . . . 3 . . . . . . . . . . RETURN 31 | . . . . . . . . . . . . . . . 15 16 . . . . . . . . . . Ally Attacks 509 | . . 5 . . . . . . 7 . 14 8 . 24 121 152 . . 97 5 20 . 31 14 . 11 Total Damage 11390 | . . 69 . . . . . . 160 . 520 257 . 475 2309 2745 . . 1801 54 563 . 1246 682 . 509 Kills 94 | . . . . . . . . . 2 . 5 3 . 2 27 17 . . 19 . 6 . 5 4 . 4 Allies Corrupted . | . . . . . . . . . . . . . . . . . . . . . . . . . . . Allies Melted . | . . . . . . . . . . . . . . . . . . . . . . . . . . . Intel | -11 -10 -10 -10 -9 -8 -8 -7 -7 -7 -7 -6 -6 -6 -6 -6 -6 -5 -5 -5 -4 -4 -4 -3 -2 -1 -1 ------- Run | Scr Mat Min Exi Min Mat Gar Fac Low Low Dat Pro Fac Low Low Zio Dee Pro Fac Ext Fac Arm Lab Res Res Acc Com Robot Analysis Total 22 | . 2 . . . 2 . . . 1 . . . . . . . . 1 . 4 2 . . 1 7 2 Derelict Logs Recovered 7 | . . 2 . 1 . . . 1 . . . . 1 . 1 . 1 . . . . . . . . . Drone Launches 61 | . . . . . . . . . . . . . . . 28 33 . . . . . . . . . . Drone Recoveries 59 | . . . . . . . . . . . . . . . 28 31 . . . . . . . . . . Exploration | -11 -10 -10 -10 -9 -8 -8 -7 -7 -7 -7 -6 -6 -6 -6 -6 -6 -5 -5 -5 -4 -4 -4 -3 -2 -1 -1 ------------- Run | Scr Mat Min Exi Min Mat Gar Fac Low Low Dat Pro Fac Low Low Zio Dee Pro Fac Ext Fac Arm Lab Res Res Acc Com Turns Passed 36058 | 69 1769 1003 689 485 2622 546 975 1246 1020 187 805 4023 856 547 10123 981 485 1186 773 1498 768 608 916 878 706 294 Spaces Moved 22245 | 41 914 505 622 433 1056 246 434 659 529 101 411 1862 441 269 1685 1246 669 1657 840 2022 913 245 1083 1544 1406 412 Core 525 | 6 . . . . . . . . . . . . . . 501 . . . . . . . . . . 18 Treads 8032 | 35 914 459 . . 625 246 434 659 529 101 411 1860 441 268 994 . . . 44 . . . . 12 . . Legs 333 | . . . . . 241 . . . . . . 2 . 1 89 . . . . . . . . . . . Wheels 1277 | . . 46 622 433 176 . . . . . . . . . . . . . . . . . . . . . Hover 14 | . . . . . 14 . . . . . . . . . . . . . . . . . . . . . Flight 12064 | . . . . . . . . . . . . . . . 101 1246 669 1657 796 2022 913 245 1083 1532 1406 394 Fastest Speed 17 | 50 160 110 110 110 140 185 185 185 185 185 183 162 162 185 50 25 50 25 42 21 42 42 21 17 18 17 Average Speed 128 | 143 160 168 110 110 183 185 185 185 185 185 183 168 171 185 572 50 50 49 52 41 43 42 24 26 30 31 Slowest Speed 1550 | 160 180 180 110 110 300 185 185 185 185 185 185 270 185 270 1550 150 50 50 230 42 150 42 42 200 117 117 Overloaded Moves . | . . . . . . . . . . . . . . . . . . . . . . . . . . . Propulsion Burnouts . | . . . . . . . . . . . . . . . . . . . . . . . . . . . Robots Hopped 77 | . . . . . . . . . . . . . . . . 1 . 3 8 7 1 . 15 22 19 1 Cave-ins Triggered . | . . . . . . . . . . . . . . . . . . . . . . . . . . . Exploration Rate (%) 61 | 5 97 98 92 98 83 53 13 87 66 74 55 42 66 44 90 86 69 34 76 38 51 99 40 47 36 28 Regions Visited 26 Branch Regions 16 Pre-discovered Areas 5 | . . 1 1 . . . . 1 . 1 . . . . . . 1 . . . . . . . . . Known Exits Taken 15 | . . . . . 1 . 1 1 1 1 1 1 . . . . 1 1 1 1 . 1 1 1 1 . Unknown Exits Taken 10 | 1 1 1 1 1 . . . . . . . . 1 1 1 1 . . . . 1 . . . . . Scrap Searched 14 | . . 4 . 1 . . . 1 3 . . . 2 . 2 . 1 . . . . . . . . . Spaces Dug 314 | . . . . . 10 17 . 2 . . . 4 . . 3 6 29 39 . 46 38 . 12 29 17 62 Terrain Destroyed 1223 | . . 44 . . 103 65 10 2 23 . 47 69 43 15 12 7 35 44 107 177 63 . 12 264 19 62 Melee 82 | . . . . . . . . 2 . . . 4 . . 3 . . 14 . 23 6 . 11 15 4 . Projectile 139 | . . . . . 6 3 . . . . . 9 . . 9 7 35 30 3 2 . . 1 17 15 2 AOE 1002 | . . 44 . . 97 62 10 . 23 . 47 56 43 15 . . . . 104 152 57 . . 232 . 60 Terrain Rammed . | . . . . . . . . . . . . . . . . . . . . . . . . . . . Walls Destroyed . | . . . . . . . . . . . . . . . . . . . . . . . . . . . Machines Disabled . | . . . . . . . . . . . . . . . . . . . . . . . . . . . Actions | -11 -10 -10 -10 -9 -8 -8 -7 -7 -7 -7 -6 -6 -6 -6 -6 -6 -5 -5 -5 -4 -4 -4 -3 -2 -1 -1 --------- Run | Scr Mat Min Exi Min Mat Gar Fac Low Low Dat Pro Fac Low Low Zio Dee Pro Fac Ext Fac Arm Lab Res Res Acc Com Total 27786 | 48 1092 583 627 444 1527 295 569 682 550 101 440 2541 489 294 1971 1595 761 1930 1047 2565 1227 747 1623 1866 1624 548 Wait 3262 | . 67 10 . 1 219 . 52 1 1 . 11 439 . 1 89 245 57 160 80 414 168 468 389 170 135 85 Move 22067 | 40 913 504 621 432 1055 244 433 658 528 100 410 1861 440 268 1684 1243 668 1650 824 2007 910 244 1052 1501 1368 409 Hop 73 | . . . . . . . . . . . . . . . . 1 . 3 7 7 1 . 15 20 18 1 Pick Up 231 | 2 9 7 2 4 35 2 3 5 1 . . 24 3 2 20 23 . 21 2 11 17 6 13 12 4 3 Fast Attach 193 | 6 4 1 . . 24 2 8 3 . . 1 17 3 4 22 16 . 7 1 6 27 9 9 12 8 3 Attach 95 | . 4 3 . . 14 . 1 2 . . . 11 4 . 7 5 . 4 2 3 7 2 1 18 4 3 Detach 39 | . 1 . . . 6 . . 1 . . . 2 . . 2 3 . 1 1 1 4 3 1 9 2 2 Swap 208 | . 4 7 2 2 18 5 10 5 5 1 6 30 12 5 5 4 6 4 7 20 14 1 11 12 8 4 Drop 278 | . 5 2 2 5 27 4 9 5 1 . . 30 2 3 29 37 . 12 1 11 35 11 8 17 14 8 Fire 850 | . 62 37 . . 117 32 21 . 13 . 12 112 25 11 77 6 30 50 27 32 26 . 46 60 32 22 Melee 242 | . . . . . 4 . . 2 . . . 11 . . 31 3 . 18 19 53 18 3 30 35 9 6 Ram 2 | . . . . . 2 . . . . . . . . . . . . . . . . . . . . . Kick 1 | . . . . . 1 . . . . . . . . . . . . . . . . . . . . . Crush 87 | . 23 10 . . 5 . 3 . 1 . . 2 . . 1 . . . 42 . . . . . . . Escape Stasis 80 | . . . . . . 6 . . . . . 2 . . . . . . . . . . 48 . 22 2 Rewire 65 | . . 2 . . . . 29 . . . . . . . . . . . 34 . . . . . . . Trap . | . . . . . . . . . . . . . . . . . . . . . . . . . . . Miscellaneous 13 | . . . . . . . . . . . . . . . 4 9 . . . . . . . . . . Route ------- -11/Scrapyard -10/Materials (discovered 5 exits: [*Mat x3] / *Min x2) -10/Mines (discovered 3 exits: [*Mat x2] / *Exi) -10/Exiles -9/Mines (discovered 2 exits: *Mat x2) -8/Materials (discovered 5 exits: *Fac x2 / [*Sto x2] / Gar) -8/Garrison -7/Factory -7/Lower Caves -7/Lower Caves (discovered 2 exits: *Fac / *Dat) -7/Data Miner -6/Proximity Caves -6/Factory (discovered 4 exits: *Fac x3 / *Low) -6/Lower Caves -6/Lower Caves -6/Zion (discovered 2 exits: [*Dee] / [*Pro]) -6/Deep Caves -5/Proximity Caves -5/Factory (discovered 5 exits: *Fac / Upp x2 / *Ext x2) -5/Extension (discovered 3 exits: *Fac x2 / *Cet) -4/Factory (discovered 5 exits: *Res x2 / *Upp x2 / *Arm) -4/Armory (discovered 3 exits: Res x2 / *Lab) -4/Lab -3/Research (discovered 5 exits: *Res x3 / Tes x2) -2/Research (discovered 3 exits: *Acc x3) -1/Access (discovered 2 exits: Sur / *Com) -1/Command (discovered 2 exits: *Sur x2) To Epsilon Eridani History --------- Turn | Location | Event 2 | -11/Scrapyard | Met Revision 17 6 | -11/Scrapyard | Discovered new exit (range 14) 70 | -11/Scrapyard | Entered Materials 126 | -10/Materials | Discovered new exit (range 10) 282 | -10/Materials | Repaired Lgt. Armor Plating 303 | -10/Materials | Build established: Mutant 415 | -10/Materials | Discovered new exit (range 14) 494 | -10/Materials | Discovered new exit (range 10) 829 | -10/Materials | Discovered new exit (range 15) 1366 | -10/Materials | Discovered new exit (range 11) 1839 | -10/Materials | Entered Mines 2180 | -10/Mines | Learned location of Mines (-9) 2357 | -10/Mines | Assembled infested the area 2392 | -10/Mines | Met 8R-AWN 2416 | -10/Mines | Discovered new exit (range 15) 2629 | -10/Mines | Lost 3 parts (1n2w) 2733 | -10/Mines | Learned Materials stockpile data 2781 | -10/Mines | Core integrity fell below 50% 2804 | -10/Mines | Discovered new exit (range 4) 2837 | -10/Mines | Discovered new exit (range 5) 2842 | -10/Mines | Entered Exiles 2870 | -10/Exiles | Welcomed by 8R-AWN 2888 | -10/Exiles | Met EX-HEX 2918 | -10/Exiles | Met EX-BIN 2932 | -10/Exiles | Aligned with FarCom system 2933 | -10/Exiles | Given EX-Vault access code 2959 | -10/Exiles | Opened EX-Vault 2967 | -10/Exiles | Found Flying Fortress v7 3022 | -10/Exiles | Warned to stay clear of 0b10 Research branches 3052 | -10/Exiles | Met EX-DEC 3059 | -10/Exiles | Learned location of Zion (-6) 3165 | -10/Exiles | Visited The Gauntlet 3522 | -10/Exiles | Discovered new exit (range 10) 3531 | -10/Exiles | Left Exiles lab with Flying Fortress v7 3531 | -10/Exiles | Entered Mines 3557 | -9/Mines | Discovered new exit (range 9) 3590 | -9/Mines | Found the Drone Emporium 3597 | -9/Mines | Found Prototype Device 3666 | -9/Mines | Joined a pair of Derelicts in attacking an 0b10 outpost 3850 | -9/Mines | Learned Materials non-interactive machine intel 3865 | -9/Mines | Found a damaged Exp. Sensor Array with a note attached 3868 | -9/Mines | Found Prototype Device 3889 | -9/Mines | Discovered new exit (range 10) 4016 | -9/Mines | Entered Materials 4016 | -8/Materials | Evolved 4 slots: Utility x3, Weapon x1 4018 | -8/Materials | Loaded intel: 41 non-interactive machine locations 4019 | -8/Materials | Identified Decoy Drone Bay 4020 | -8/Materials | Identified Exp. Sensor Array 4310 | -8/Materials | Build established: Hauler-Mutant 4405 | -8/Materials | Lost 3 parts (1p1n1w) 4687 | -8/Materials | Core integrity fell below 50% 4748 | -8/Materials | Lost 11 parts (1p3n3u4w) 4976 | -8/Materials | Discovered new exit (range 14) 5472 | -8/Materials | Build established: Hauler-Skirmisher 5624 | -8/Materials | Discovered new exit (range 7) 5896 | -8/Materials | Discovered new exit (range 16) 6016 | -8/Materials | First assault squad dispatched 6381 | -8/Materials | Discovered new exit (range 14) 6421 | -8/Materials | Repaired Lrg. Storage Unit 6491 | -8/Materials | Repaired Gauss Rifle 6636 | -8/Materials | Identified exit to Garrison 6638 | -8/Materials | Entered Garrison 6649 | -8/Garrison | Triggered checkpoint 6854 | -8/Garrison | Triggered checkpoint 6923 | -8/Garrison | Triggered checkpoint 6952 | -8/Garrison | Triggered checkpoint 6982 | -8/Garrison | Destroyed 9 combat bots 7037 | -8/Garrison | Discovered new exit (range 8) 7045 | -8/Garrison | Build established: Hauler-Mutant 7065 | -8/Garrison | Installed Relay Interface Framework 7095 | -8/Garrison | Triggered checkpoint 7136 | -8/Garrison | Garrison Relay disabled 7184 | -8/Garrison | Entered Factory 7184 | -7/Factory | Evolved 2 slots: Propulsion x1, Utility x1 7482 | -7/Factory | Build established: Hauler-Skirmisher 7959 | -7/Factory | Repaired Arm. Treads 8042 | -7/Factory | Discovered new exit (range 3) 8063 | -7/Factory | Identified exit to Lower Caves 8159 | -7/Factory | Entered Lower Caves 8159 | -7/Lower Caves | Accompanied by 3 allies 8687 | -7/Lower Caves | Found Alien Artifact 8687 | -7/Lower Caves | Identified Core Expander 8687 | -7/Lower Caves | Installed Core Expander, added new Weapon slot 8740 | -7/Lower Caves | Encountered a Warlord checkpoint 9306 | -7/Lower Caves | Discovered new exit (range 14) 9350 | -7/Lower Caves | Identified exit to Lower Caves 9405 | -7/Lower Caves | Entered another Lower Caves area 9405 | -7/Lower Caves | Accompanied by 3 allies 9446 | -7/Lower Caves | Discovered new exit (range 7) 9466 | -7/Lower Caves | Identified exit to Factory 10127 | -7/Lower Caves | Discovered new exit (range 10) 10150 | -7/Lower Caves | Central database locked down 10190 | -7/Lower Caves | Identified exit to Data Miner 10425 | -7/Lower Caves | Entered Data Miner 10425 | -7/Data Miner | Discovered new exit (range 6) 10435 | -7/Data Miner | Identified exit to Proximity Caves 10462 | -7/Data Miner | Met Data Miner 10496 | -7/Data Miner | Learned location of Section 7 (-2) 10496 | -7/Data Miner | Acquired the access code to Warlord's prototype stash 10524 | -7/Data Miner | Received God Mode back door access code from Data Miner 10612 | -7/Data Miner | Entered Proximity Caves 10899 | -6/Proximity Caves | Escorted by Enhanced Grunt 11311 | -6/Proximity Caves | Discovered exit to Factory (range 9) 11417 | -6/Proximity Caves | Entered Factory 11417 | -6/Factory | Accompanied by 1 ally 11417 | -6/Factory | Evolved 2 slots: Propulsion x1, Utility x1 11636 | -6/Factory | Discovered new exit (range 6) 11646 | -6/Factory | Identified exit to Factory 11782 | -6/Factory | Build established: Hauler-Tank 12315 | -6/Factory | Repaired Lgt. Treads 12327 | -6/Factory | Incoming investigation squad redirected 12737 | -6/Factory | Build established: Hauler-Skirmisher 12774 | -6/Factory | Discovered exit to Factory (range 14) 13296 | -6/Factory | Repaired Lrg. Storage Unit 13356 | -6/Factory | Repaired Arm. Treads 13416 | -6/Factory | Spotted B-75 Beast 13503 | -6/Factory | Destroyed B-75 Beast 14158 | -6/Factory | Fabricated Combat Drone Bay (x1) 14199 | -6/Factory | Build established: Hauler-Tank 14245 | -6/Factory | Fabricated Combat Drone Bay (x1) 14273 | -6/Factory | Garrison activated, responded to threat 14330 | -6/Factory | Fabricated Combat Drone Bay? 14981 | -6/Factory | Build established: Hauler-Skirmisher 14987 | -6/Factory | Discovered exit to Factory (range 5) 15267 | -6/Factory | First assault squad dispatched 15293 | -6/Factory | Incoming assault squad redirected 15309 | -6/Factory | Local fabrication network quarantined 15361 | -6/Factory | Discovered new exit (range 4) 15378 | -6/Factory | Identified exit to Lower Caves 15415 | -6/Factory | Repaired Imp. Medium Treads 15440 | -6/Factory | Entered Lower Caves 15601 | -6/Lower Caves | Learned Factory trap positions 15688 | -6/Lower Caves | Ambushed by wild Derelicts 15902 | -6/Lower Caves | Attracted the attention of an 0b10 outpost 15965 | -6/Lower Caves | Destroyed 10 combat bots 15968 | -6/Lower Caves | Lost 6 parts (2n2u2w) 16215 | -6/Lower Caves | Found Prototype Device 16244 | -6/Lower Caves | Discovered new exit (range 16) 16296 | -6/Lower Caves | Entered another Lower Caves area 16296 | -6/Lower Caves | Accompanied by 2 allies 16389 | -6/Lower Caves | Build established: Scavenger-Skirmisher 16769 | -6/Lower Caves | Discovered new exit (range 10) 16843 | -6/Lower Caves | Entered Zion 16843 | -6/Zion | Accompanied by 1 ally 16897 | -6/Zion | System corruption cleaned by Quarantine Array 16931 | -6/Zion | Build established: Hauler-Skirmisher 16971 | -6/Zion | Discovered new exit (range 9) 19114 | -6/Zion | Build established: Hauler-Tank 24982 | -6/Zion | RIF detected upon attempting to enter Zion 24982 | -6/Zion | Attacked by Zionites 25215 | -6/Zion | Found Prototype Energy Gun 25215 | -6/Zion | Identified Storm Laser 25382 | -6/Zion | Lost 3 parts (1p1n1w) 25406 | -6/Zion | Core integrity fell below 50% 25486 | -6/Zion | Found Relay Coupler [Programmer] 25493 | -6/Zion | Found Relay Coupler [Programmer] 25502 | -6/Zion | Found Relay Coupler [Programmer] 25504 | -6/Zion | Found Relay Coupler [Programmer] 25664 | -6/Zion | Build established: Scavenger-Mutant 25760 | -6/Zion | Core integrity fell below 20% 25796 | -6/Zion | Lost 10 parts (1p2n3u4w) 26283 | -6/Zion | Build established: Scavenger-Gunner 26592 | -6/Zion | Found Prototype Device 26592 | -6/Zion | Identified Bomb Factory No. 2 26963 | -6/Zion | Discovered new exit (range 5) 26964 | -6/Zion | Saw the warning signs outside the Deep Caves entrance 26966 | -6/Zion | Entered Deep Caves 26967 | -6/Deep Caves | Met 5H-AD0 27018 | -6/Deep Caves | Z-Facility disabled 27160 | -6/Deep Caves | Found Prototype Protection 27160 | -6/Deep Caves | Identified Zio. Weapon Casing 27187 | -6/Deep Caves | Build established: Bothacker-Mutant 27332 | -6/Deep Caves | Found Zio. Weapon Casing 27389 | -6/Deep Caves | Attacked by Z-Imprinter 27404 | -6/Deep Caves | Allies destroyed Z-Imprinter 27420 | -6/Deep Caves | Found Prototype Device 27420 | -6/Deep Caves | Identified Zio. Metafield Generator 27483 | -6/Deep Caves | Found Zio. Weapon Casing 27491 | -6/Deep Caves | Found Zio. Weapon Casing 27533 | -6/Deep Caves | Found Surveybot 24 Chip 27535 | -6/Deep Caves | Found Surveybot 24 Scanner 27802 | -6/Deep Caves | Build established: Hauler-Mutant 27943 | -6/Deep Caves | Discovered new exit (range 6) 27947 | -6/Deep Caves | Entered Proximity Caves 28072 | -5/Proximity Caves | Learned location of Armory (-4) 28422 | -5/Proximity Caves | Discovered exit to Factory (range 8) 28432 | -5/Proximity Caves | Entered Factory 28432 | -5/Factory | Evolved 2 slots: Propulsion x1, Utility x1 28433 | -5/Factory | Identified exit to Upper Caves 28434 | -5/Factory | Loaded intel: 102 trap records 28442 | -5/Factory | Identified exit to Extension 28722 | -5/Factory | Build established: Hacker-Mutant 28730 | -5/Factory | Found Imp. Powered Armor 28784 | -5/Factory | Incoming investigation squad redirected 28954 | -5/Factory | Discovered new exit (range 15) 29140 | -5/Factory | Repaired Lrg. Storage Unit 29549 | -5/Factory | Fabricated Biomechanical Wings (x1) 29588 | -5/Factory | Repaired Lrg. Storage Unit 29618 | -5/Factory | Entered Extension 29630 | -5/Extension | Rescued a captive Derelict 29647 | -5/Extension | Rescued a captive Derelict 29649 | -5/Extension | Rescued a captive Derelict 29651 | -5/Extension | Incoming investigation squad redirected 29667 | -5/Extension | Rescued a captive Derelict 29668 | -5/Extension | Rescued a captive Derelict 29669 | -5/Extension | Rescued a captive Derelict 29670 | -5/Extension | Rescued a captive Derelict 29708 | -5/Extension | Rescued a captive Derelict 29770 | -5/Extension | Spotted B-75 Beast 29861 | -5/Extension | Spotted B-75 Beast 29885 | -5/Extension | Allies destroyed B-75 Beast 29899 | -5/Extension | Discovered new exit (range 3) 29899 | -5/Extension | Identified exit to Cetus 29899 | -5/Extension | Identified exit to Factory 29918 | -5/Extension | Disrupted transfer network 30020 | -5/Extension | Rescued a captive Derelict 30020 | -5/Extension | Rescued a captive Derelict 30039 | -5/Extension | Rescued a captive Derelict 30041 | -5/Extension | Rescued a captive Derelict 30064 | -5/Extension | Energy Cycler disabled 30065 | -5/Extension | Rescued a captive Derelict 30065 | -5/Extension | Rescued a captive Derelict 30086 | -5/Extension | Rescued A7 30277 | -5/Extension | Destroyed A7 30282 | -5/Extension | Extracted ID and sensor layout for unrecognized location from A7's data core 30391 | -5/Extension | Entered Factory 30391 | -4/Factory | Evolved 2 slots: Propulsion x1, Utility x1 30394 | -4/Factory | Identified exit to Garrison 30496 | -4/Factory | Identified exit to Upper Caves 30496 | -4/Factory | Identified exit to Armory 30581 | -4/Factory | Fabricated Adv. System Shield (x1) 30636 | -4/Factory | Fabricated Adv. System Shield (x1) 30748 | -4/Factory | Incoming investigation squad redirected 30951 | -4/Factory | Repaired Hvy. Shock Bomb Launcher 30967 | -4/Factory | Incoming investigation squad redirected 31164 | -4/Factory | Discovered new exit (range 10) 31406 | -4/Factory | Central database locked down 31484 | -4/Factory | Repaired Field Propulsion Array 31754 | -4/Factory | Fabricated Imp. Cloaking Device (x1) 31776 | -4/Factory | Discovered new exit (range 14) 31889 | -4/Factory | Entered Armory 31945 | -4/Armory | Repaired Micro-nuke Launcher 31961 | -4/Armory | Identified exit to Research 31966 | -4/Armory | Found Fusion Bomb Launcher 31967 | -4/Armory | Found Gamma Bomb Array 31967 | -4/Armory | Found Fusion Bomb Launcher 31969 | -4/Armory | Found Gamma Bomb Array 31974 | -4/Armory | Central database locked down 31977 | -4/Armory | Found Prototype Hackware 31977 | -4/Armory | Identified Exp. System Shield 32135 | -4/Armory | Fabricated Impulse Thruster Array? 32327 | -4/Armory | Fabricated Lgt. Regenerative Plating (x1) 32414 | -4/Armory | Destroyed 9 combat bots 32435 | -4/Armory | Found Gamma Bomb Array 32437 | -4/Armory | Found Gamma Bomb Array 32438 | -4/Armory | Found Gamma Bomb Array 32644 | -4/Armory | Discovered new exit (range 21) 32657 | -4/Armory | Entered Lab 32657 | -4/Lab | Discovered exit to Research (range 9) 32662 | -4/Lab | Hidden lab's door opened automatically 32662 | -4/Lab | Sensor layout match revealed 32663 | -4/Lab | Gained access to the hidden lab's interior 32674 | -4/Lab | Unable to decrypt terminal 32683 | -4/Lab | Found Prototype Hackware 32683 | -4/Lab | Identified Quantum Router 32687 | -4/Lab | Found Prototype Energy Cannon 32687 | -4/Lab | Identified Warp Cannon 32690 | -4/Lab | Found Prototype Energy Gun 32690 | -4/Lab | Identified Hyp. EM Gauss Rifle 32706 | -4/Lab | Found Prototype Special Weapon 32706 | -4/Lab | Identified Gui. Remote Datajack 32720 | -4/Lab | Found Prototype Protection 32990 | -4/Lab | Build established: Wizard-Mutant 33201 | -4/Lab | Found Core Expander 33201 | -4/Lab | Installed Core Expander, added new Utility slot 33202 | -4/Lab | Identified Hvy. Regenerative Plating 33208 | -4/Lab | Found Alien Artifact 33208 | -4/Lab | Identified Integrated Reactor 33208 | -4/Lab | Installed Integrated Reactor, increased core energy generation (+10) 33224 | -4/Lab | Found Alien Artifact 33245 | -4/Lab | Unable to decrypt terminal 33259 | -4/Lab | Found Alien Artifact 33265 | -4/Lab | Entered Research 33265 | -3/Research | Evolved 2 slots: Power x1, Utility x1 33324 | -3/Research | Spotted B-86 Titan 33536 | -3/Research | Fabricated Impulse Thruster Array (x1) 33579 | -3/Research | Fabricated Impulse Thruster Array (x1) 33603 | -3/Research | Found Prototype Launcher 33603 | -3/Research | Identified Tactical Quantum Warhead 33685 | -3/Research | Repaired Enh. Quantum Rifle 33706 | -3/Research | Build established: Wizard-Sprinter 33713 | -3/Research | Repaired Lrg. Storage Unit 33790 | -3/Research | Repaired Impulse Thruster Array 33861 | -3/Research | Local fabrication network quarantined 33866 | -3/Research | Repaired Enh. Quantum Rifle 33908 | -3/Research | Identified exit to Testing 34099 | -3/Research | Identified exit to Research 34181 | -3/Research | Entered another Research area 34181 | -2/Research | Evolved 2 slots: Utility x2 34417 | -2/Research | Repaired Plasma Lance 34640 | -2/Research | Repaired Impulse Thruster Array 34816 | -2/Research | Build established: Wizard-Mutant 34861 | -2/Research | Lost 3 parts (2p1w) 34949 | -2/Research | Identified exit to Access 35059 | -2/Research | Entered Access 35059 | -1/Access | Evolved 1 slot: Utility x1 35090 | -1/Access | Fabricated Adv. Cloaking Device (x1) 35124 | -1/Access | Fabricated Inertial Stasis Machine (x1) 35158 | -1/Access | Local fabrication network quarantined 35159 | -1/Access | Fabricated Inertial Stasis Machine (x1) 35351 | -1/Access | First assault squad dispatched 35352 | -1/Access | Spotted B-99 Colossus 35357 | -1/Access | Identified exit to Command 35385 | -1/Access | Lost 3 parts (2u1w) 35688 | -1/Access | Found Tactical Quantum Warhead 35738 | -1/Access | Repaired Impulse Thruster Array 35754 | -1/Access | Identified exit to Surface 35758 | -1/Access | Central database locked down 35765 | -1/Access | Entered Command 35821 | -1/Command | Repaired Impulse Thruster Array 35932 | -1/Command | Destroyed 7 combat bots 36041 | -1/Command | Spotted B-99 Colossus 36043 | -1/Command | Spotted Alpha 7 36043 | -1/Command | Spotted Alpha 7 36043 | -1/Command | Spotted Striker 36043 | -1/Command | Spotted Striker 36043 | -1/Command | Spotted Executioner 36043 | -1/Command | Spotted Executioner 36043 | -1/Command | Spotted Executioner 36043 | -1/Command | Spotted Executioner 36044 | -1/Command | Spotted B-99 Colossus 36047 | -1/Command | Spotted B-99 Colossus 36055 | -1/Command | Core integrity fell below 50% 36058 | -1/Command | Core integrity fell below 20% 36059 | *** | Escaped! Last Messages --------------- 36056_ Penetrated by Slug. 36056_ Slug penetrates Wall. 36056_ Field strength at 49. 36057_ Hacking Suite destroyed. 36057_ Penetrated by Slug. 36057_ Slug penetrates Wall. 36057_ Penetrated by Slug. 36057_ Slug penetrates Wall. 36058_ Penetrated by Slug. 36058_ Slug penetrates Wall. 36058_ The Access Shell folds into the floor. 36058_ Penetrated by Slug. 36058_ Slug penetrates Alpha 7. 36058_ Penetrated by Slug. 36058_ Slug penetrates B-99 Colossus. 36058_ Field strength at 78. 36058_ Field strength at 19. 36059_ Field strength at 73. 36059_ Stasis field depleted. [Achievement: Epsilon Run] Map ----- +----------------------------------------------------+ | ?????????????????????????????????????????????????? | | ?????????????????????????????????????????????????? | | ?????????????????????????????????????????????????? | | ?????????????????????????????????????????????????? | | ?????????????????????????????????????????????????? | | ?????????????????????????????????????????????????? | | ?????????????????????????????????????????????????? | | ?????????????????????????????????????????????????? | | ?????????????????????????????????????????????????? | | ?????????????????????????????????????????????????? | | ?????????????????????????????????????????????????? | | ?????????????????????????????????????????????????? | | ?????????????????????????????????????????????????? | | ?????????????????????????????????????????????????? | | ?????????????????????????????????????????????????? | | ?????????????????????????????????????????????????? | | ?????????????????????????????????????????????????? | | ?????????????????????????????????????????????????? | | #????????????######??????????????????????????? | | #????????????###;;##########?????????????????? | | ####???##########; #?????????????????? | | ####???####;###;;; #?????????????????? | | # ##?##"#7;K; ; ; #?????????????????? | | # """"" s^ ^ BB #?????????????????? | | " E s BB #?????????????????? | | [/[ss E ^ "@ #?????????????????? | | ]/! K E BB " #?????????????????? | | ]s!]E BB #?????????????????? | | " %="" 7 #?????????????????? | | " # ### # # # # #?????????????????? | | "############# #?????????????????? | | ""#?########### #?????????????????? | | ""#??????????###############?????????????????? | | T#??????????####????????????????????????????? | | ! ""#??????????????????????????????????????????? | | ! ""#??????????????????????????????????????????? | | ! % ""####???????????????????????????????????????? | | !$! #???????????????????????????????????????? | | #???????????????????????????????????????? | | #???????????????????????????????????????? | | ##### #???????????????????????????????????????? | | ######+######????????????????????????????????????? | | # #????????????????????????????????????? | | # #????????????????????????????????????? | | # "" "" #????????????????????????????????????? | | # ""T"" #????????????????????????????????????? | | # """ #????????????????????????????????????? | | # #????????????????????????????????????? | | # #????????????????????????????????????? | | ##########+##????????????????????????????????????? | +----------------------------------------------------+ Best States ------------- Heat Dissipation 97 Energy Generation 55 Energy Capacity 1290 Matter Stores 300 Matter Capacity 700 Sight Range 16 Robot Scan Range 30 Terrain Scan Range 24 Terrain Scan Density 2010 Cloak Strength 4 Additional Mass Support 32 Armor Coverage 600 Resistance: TH 10 Utility Shielding 66 Weapon Shielding 100 Evasion (%) 66 Recoil Reduction 4 Stasis Canceling 1 Offensive Hacking 39 Defensive Hacking 83 Relay Coupler Types 83 Relay Coupler Value 1 Item Schematics ----------------- Lrg. Storage Unit | -8/Materials | Hacked Cmb. Airjet | -8/Materials | Scanalyzed Hacking Suite | -8/Materials | Scanalyzed Exp. Sensor Array | -8/Materials | Scanalyzed Imp. Signal Interpreter | -8/Materials | Scanalyzed Rocket Launcher | -8/Materials | Scanalyzed Hvy. Particle Gun | -8/Materials | Scanalyzed Hcp. Matter Pod | -8/Materials | Scanalyzed Imp. Ion Engine | -8/Materials | Scanalyzed Insulated Plating | -8/Materials | Scanalyzed Carbon-fiber Leg | -8/Materials | Scanalyzed Combat Drone Bay | -7/Data Miner | Free Lgt. Regenerative Plating | -7/Data Miner | Free Cmb. Gravmag System | -7/Data Miner | Free Exp. Transmission Jammer | -7/Data Miner | Free Exp. ECM Suite | -7/Data Miner | Free Cloaking Device | -7/Data Miner | Free Proton Cannon | -6/Factory | Scanalyzed Lyr. Medium Armor Plating | -6/Factory | Scanalyzed Riot Gun | -6/Zion | Free Hvy. Riot Gun | -6/Zion | Free Slug Cannon | -6/Zion | Free Flamer | -6/Zion | Free Adv. System Shield | -5/Factory | Hacked Lgt. Particle Reactor | -5/Factory | Hacked Adv. Hacking Suite | -5/Factory | Hacked Biomechanical Wings | -5/Factory | Hacked Impulse Thruster | -5/Extension | Hacked Impulse Thruster Array | -4/Factory | Hacked Hvy. Shock Bomb Launcher | -4/Factory | Hacked Imp. Cloaking Device | -4/Factory | Hacked Imp. Deuterium Engine | -4/Factory | Scanalyzed Adv. Powered Armor | -4/Armory | Hacked Com. HERF Cannon | -4/Armory | Hacked Spectral Analyzer | -3/Research | Hacked Inertial Stasis Machine | -3/Research | Hacked Quantum Reactor | -3/Research | Hacked Fusion Bomb Launcher | -3/Research | Hacked Adv. Cloaking Device | -2/Research | Hacked Robot Schematics ------------------ S-27 Virus | -7/Data Miner | Free G-50 Soldier | -7/Data Miner | Free H-66 Slayer | -7/Data Miner | Free I-36 Angel | -7/Data Miner | Free I-47 Archangel | -7/Data Miner | Free Fabricated ------------ Combat Drone Bay | x1 | -6/Factory Combat Drone Bay | x1 | -6/Factory Combat Drone Bay | x1 | -6/Factory Biomechanical Wings | x1 | -5/Factory Adv. System Shield | x1 | -4/Factory Adv. System Shield | x1 | -4/Factory Imp. Cloaking Device | x1 | -4/Factory Impulse Thruster Array | x1 | -4/Armory Lgt. Regenerative Plating | x1 | -4/Armory Impulse Thruster Array | x1 | -3/Research Impulse Thruster Array | x1 | -3/Research Adv. Cloaking Device | x1 | -1/Access Inertial Stasis Machine | x1 | -1/Access Inertial Stasis Machine | x1 | -1/Access Alien Tech Used ----------------- Core Expander Integrated Reactor Achievements -------------- Epsilon Run Omniscient Cartographer Challenges ------------ None Game ------ Seed LobotomyRecyclingFlamer Manual? 0 Play Time 06:05:04 Cumulative 111.8 hours Start 2020.10.22 @ 20:15:48 End 2020.10.23 @ 02:52:28 Sessions 1 Manual Loads 0 Difficulty Rogue Special Mode None Game No. 37 Rogue 22 Adventurer 15 Explorer 0 Win Type 0 Total 3 Types 1/0/1/1/0/0/0/0/0 Lore% 74 Gallery% 70 Achievement% 59 Wizard Run 0 Options --------- ASCII 0 Keyboard 0 Movement Numpad Keybinds 0 Fullscreen 1 Font 18/SmallcapsGlow Map View 76x50 Tactical HUD 1 Map Filters NONE Filters NONE Steam 1 RUN: fbcb3546-879f-4c4d-a263-3d39d090dc03